bitfinex-derivatives/quotes_BTCF0:USTF0_20250504
["timestamp","ask_amount","ask_price","bid_price","bid_amount"]
[1746400291127,1.2238016,94754.0,94753.0,1.46235595]
[1746400291428,0.2110523,94749.0,94748.0,0.1366]
[1746400291634,1.2710523,94749.0,94748.0,0.54458421]
[1746400291834,1.2710523,94749.0,94748.0,2.38193421]
[1746400293334,1.2740523,94749.0,94748.0,2.38193421]
[1746400293921,1.2740523,94749.0,94748.0,2.51883421]
[1746400294127,1.2740523,94749.0,94748.0,2.65123421]
[1746400294330,1.2740523,94749.0,94748.0,2.29003553]
[1746400294626,1.2740523,94749.0,94748.0,1.86821553]
[1746400296425,0.393,94749.0,94748.0,2.91228871]
[1746400296625,0.013,94749.0,94748.0,2.86228871]
[1746400296829,0.063,94749.0,94748.0,2.86228871]
[1746400297227,0.453,94749.0,94748.0,2.98028871]
[1746400297938,0.793,94749.0,94748.0,2.98028871]
[1746400299941,0.793,94749.0,94748.0,3.21452632]
[1746400300330,1.0040523,94749.0,94748.0,3.21452632]
[1746400301430,1.0040523,94749.0,94748.0,3.57532632]
[1746400303339,1.0040523,94749.0,94748.0,3.45732632]
[1746400303540,0.9934823,94749.0,94748.0,3.45732632]
[1746400304239,0.9934823,94749.0,94748.0,3.57532632]
[1746400305746,0.9934823,94749.0,94748.0,3.21412764]
[1746400307045,0.9934823,94749.0,94748.0,2.85332764]
[1746400309053,0.9934823,94749.0,94748.0,2.64227314]
[1746400309542,0.78243,94749.0,94748.0,3.21452632]
[1746400310152,0.9934823,94749.0,94748.0,3.09652632]
[1746400310346,0.9934823,94749.0,94748.0,2.67470632]
[1746400310647,0.9934823,94749.0,94748.0,3.09652632]
[1746400312545,0.2710523,94749.0,94748.0,3.09652632]
[1746400314345,0.5810523,94749.0,94748.0,3.09652632]
[1746400314946,0.5810523,94749.0,94748.0,3.16384632]
[1746400315143,0.2710523,94749.0,94748.0,1.32649632]
[1746400315452,0.6110523,94749.0,94748.0,1.32649632]
[1746400320154,0.6110523,94749.0,94748.0,1.74831632]
[1746400320554,0.3310523,94749.0,94748.0,3.16384632]
[1746400321861,0.02,94749.0,94748.0,3.16384632]
[1746400322058,0.44,94749.0,94748.0,3.16384632]
[1746400322861,0.6510523,94749.0,94748.0,3.16384632]
[1746400324550,0.6510523,94749.0,94748.0,2.95279182]
[1746400327164,0.02,94749.0,94748.0,3.16384632]
[1746400327456,0.1,94749.0,94748.0,3.16384632]
[1746400328152,0.2298,94749.0,94748.0,3.16384632]
[1746400329147,0.4408523,94749.0,94748.0,3.16384632]
[1746400329957,0.4308523,94749.0,94748.0,3.16384632]
[1746400331255,0.3408523,94749.0,94748.0,3.16384632]
[1746400332047,0.6908523,94749.0,94748.0,3.16384632]
[1746400334360,1.4108523,94749.0,94748.0,3.16384632]
[1746400334658,0.6908523,94749.0,94748.0,3.16384632]
[1746400335258,0.7008523,94749.0,94748.0,3.16384632]
[1746400337657,0.7008523,94749.0,94748.0,1.06404182]
[1746400337862,1.4008523,94749.0,94748.0,0.70942182]
[1746400338454,1.4008523,94749.0,94748.0,0.34822314]
[1746400340563,0.7408523,94749.0,94748.0,0.60952314]
[1746400340763,0.1352,94759.0,94748.0,0.60952314]
[1746400340764,0.3608,94784.0,94748.0,2.93977182]
[1746400341066,0.1376,94774.0,94767.0,0.052753]
[1746400341258,0.1326,94783.0,94782.0,0.2109788]
[1746400341459,0.59,94783.0,94782.0,0.32496433]
[1746400342360,0.8009766,94783.0,94782.0,0.58756433]
[1746400342556,0.8029766,94783.0,94782.0,0.58956433]
[1746400344761,0.9389766,94783.0,94782.0,0.58956433]
[1746400344960,0.9389766,94783.0,94782.0,0.95036433]
[1746400345960,0.592,94783.0,94782.0,3.14891301]
[1746400346262,0.702,94783.0,94782.0,2.90571433]
[1746400346459,0.9129766,94783.0,94782.0,2.90571433]
[1746400347259,1.1654766,94783.0,94782.0,2.90571433]
[1746400347566,0.9545,94783.0,94782.0,2.90571433]
[1746400347862,0.412,94783.0,94782.0,3.53178295]
[1746400348268,0.412,94783.0,94782.0,3.41378295]
[1746400349259,0.412,94783.0,94782.0,3.05258427]
[1746400349661,0.6229766,94783.0,94782.0,3.05258427]
[1746400350666,0.9429766,94783.0,94782.0,3.05258427]
[1746400350862,1.2329766,94783.0,94782.0,0.74165547]
[1746400351270,1.3586766,94783.0,94782.0,0.74165547]
[1746400351470,1.4894766,94783.0,94782.0,0.74165547]
[1746400351666,1.4894766,94783.0,94782.0,0.47678553]
[1746400352062,1.6074766,94783.0,94782.0,0.47678553]
[1746400352671,0.2110011,94772.0,94771.0,0.3226174]
[1746400352973,1.0710011,94772.0,94771.0,0.43739888]
[1746400353770,1.4544011,94772.0,94771.0,0.43739888]
[1746400354273,1.4574011,94772.0,94771.0,0.43839888]
[1746400354663,1.4574011,94772.0,94771.0,0.3846175]
[1746400355863,1.2464,94772.0,94771.0,0.3846175]
[1746400356073,1.4574011,94772.0,94771.0,0.3846175]
[1746400364182,1.5754011,94772.0,94771.0,0.3846175]
[1746400364686,1.5754011,94772.0,94771.0,0.3844975]
[1746400369489,1.5754011,94772.0,94771.0,0.11566148]
[1746400375387,1.4574011,94772.0,94771.0,0.11566148]
[1746400375687,1.3333011,94772.0,94771.0,0.11566148]
[1746400376190,1.4513011,94772.0,94771.0,0.11566148]
[1746400379185,1.3333011,94772.0,94771.0,0.11566148]
[1746400380189,1.4513011,94772.0,94771.0,0.11566148]
[1746400381088,1.3333011,94772.0,94771.0,0.11566148]
[1746400382088,1.4513011,94772.0,94771.0,0.11566148]
[1746400383080,1.3333011,94772.0,94771.0,0.11566148]
[1746400384984,0.863,94772.0,94771.0,2.67501016]
[1746400385191,1.0740011,94772.0,94771.0,2.67501016]
[1746400385783,1.0740011,94772.0,94771.0,2.953568]
[1746400388993,1.0740011,94772.0,94771.0,2.59236932]
[1746400389994,0.88560998,94772.0,94771.0,2.59236932]
[1746400390398,1.0540011,94772.0,94771.0,2.59236932]
[1746400391891,1.1889011,94772.0,94771.0,2.23156932]
[1746400392089,1.1889011,94772.0,94771.0,0.39421932]
[1746400392291,1.3147011,94772.0,94771.0,0.39421932]
[1746400393191,1.4327011,94772.0,94771.0,0.39421932]
[1746400394493,1.3069011,94772.0,94771.0,0.39421932]
[1746400394683,1.1720011,94772.0,94771.0,2.23156932]
[1746400394889,1.1720011,94772.0,94771.0,2.592768]
[1746400395096,0.961,94772.0,94771.0,3.1645713]
[1746400395397,1.0540011,94772.0,94771.0,3.1645713]
[1746400395597,1.0540011,94772.0,94771.0,2.953568]
[1746400396098,1.0540011,94772.0,94771.0,3.085068]
[1746400396298,1.0540011,94772.0,94771.0,3.215168]
[1746400396596,1.0540011,94772.0,94771.0,2.854368]
[1746400397098,1.0540011,94772.0,94771.0,3.215168]
[1746400397294,1.0540011,94772.0,94771.0,3.4261713]
[1746400398803,0.843,94772.0,94771.0,3.4261713]
[1746400399195,1.0540011,94772.0,94771.0,3.4261713]
[1746400400901,1.0540011,94772.0,94771.0,3.06497262]
[1746400414416,0.843,94772.0,94771.0,3.06497262]
[1746400414604,1.0540011,94772.0,94771.0,3.06497262]
[1746400414807,1.1789011,94772.0,94771.0,3.06497262]
[1746400418011,1.01742623,94772.0,94771.0,3.06497262]
[1746400420504,0.80642513,94772.0,94771.0,3.06497262]
[1746400420706,0.2109718,94787.0,94771.0,3.320684]
[1746400420911,0.2109699,94786.0,94785.0,1.41553]
[1746400421215,1.2929699,94786.0,94785.0,1.95189148]
[1746400421509,1.2929699,94786.0,94785.0,0.53636148]
[1746400421706,1.30089035,94786.0,94785.0,0.53636148]
[1746400422812,1.30089035,94786.0,94785.0,1.95189148]
[1746400423112,1.30289035,94786.0,94785.0,1.95489148]
[1746400423811,1.30289035,94786.0,94785.0,2.23344932]
[1746400424416,0.70289035,94786.0,94785.0,2.23344932]
[1746400424614,1.34289035,94786.0,94785.0,2.23344932]
[1746400425610,1.34289035,94786.0,94785.0,2.44442142]
[1746400427817,1.34289035,94786.0,94785.0,2.23344932]
[1746400428110,0.70289035,94786.0,94785.0,2.80522142]
[1746400429307,0.2929699,94786.0,94785.0,3.1664201]
[1746400432614,0.2929699,94786.0,94785.0,3.2938201]
[1746400432915,0.08,94786.0,94785.0,3.2938201]
[1746400433217,0.2636839,94799.0,94798.0,0.210941]
[1746400433417,1.11161951,94799.0,94798.0,0.68612248]
[1746400434006,0.84793561,94799.0,94798.0,2.52347248]
[1746400434712,0.98173561,94799.0,94798.0,2.65587248]
[1746400434905,0.84793561,94799.0,94798.0,2.65587248]
[1746400435615,1.06087661,94799.0,94798.0,2.66087248]
[1746400437715,0.842,94799.0,94798.0,2.66087248]
[1746400437921,1.052941,94799.0,94798.0,2.93943032]
[1746400438123,1.052941,94799.0,94798.0,3.05743032]
[1746400438519,0.842,94799.0,94798.0,3.18913032]
[1746400438915,0.072,94799.0,94798.0,3.18913032]
[1746400445118,0.072,94799.0,94798.0,3.550329]
[1746400445720,0.072,94799.0,94798.0,3.911129]
[1746400446824,0.002,94799.0,94798.0,3.911129]
[1746400447020,0.001,94806.0,94805.0,0.2109276]
[1746400447329,0.221,94806.0,94805.0,2.09585908]
[1746400447531,0.221,94806.0,94805.0,2.36155908]
[1746400448029,0.171,94806.0,94805.0,2.37012716]
[1746400448235,0.0527239,94820.0,94819.0,0.2108943]
[1746400448421,1.06501034,94820.0,94819.0,0.32527578]
[1746400448923,1.19671034,94820.0,94819.0,0.32527578]
[1746400449322,1.35488994,94820.0,94819.0,0.32527578]
[1746400449720,1.35688994,94820.0,94819.0,0.33227578]
[1746400450623,1.14798644,94820.0,94819.0,0.35127578]
[1746400450824,1.35888074,94820.0,94819.0,0.35127578]
[1746400453324,1.46434474,94820.0,94819.0,0.0928]
[1746400454131,1.58234474,94820.0,94819.0,0.0928]
[1746400454833,1.58234474,94820.0,94819.0,0.14078533]
[1746400457728,1.47688074,94820.0,94819.0,0.14078533]
[1746400462338,1.47688074,94820.0,94819.0,0.07398533]
[1746400462538,1.47688074,94820.0,94819.0,0.14062533]
[1746400464141,1.35888074,94820.0,94819.0,0.14062533]
[1746400472155,1.35888074,94820.0,94819.0,0.26562533]
[1746400472949,1.35888074,94820.0,94819.0,0.19898533]
[1746400473151,1.35888074,94820.0,94819.0,0.26562533]
[1746400477160,1.22718074,94820.0,94819.0,1.68115533]
[1746400477363,1.09288074,94820.0,94819.0,1.68115533]
[1746400477552,1.09288074,94820.0,94819.0,1.81685533]
[1746400478656,0.0527169,94832.0,94819.0,2.59987401]
[1746400478962,0.3374765,94828.0,94827.0,0.78262]
[1746400479163,0.9574765,94828.0,94827.0,0.78262]
[1746400479460,0.9574765,94828.0,94827.0,2.24613533]
[1746400479859,0.6974765,94828.0,94827.0,2.24613533]
[1746400480058,1.3874765,94828.0,94827.0,2.24613533]
[1746400480455,1.2608765,94828.0,94827.0,2.81821271]
[1746400480657,1.2638765,94828.0,94827.0,2.84421271]
[1746400481155,1.2638765,94828.0,94827.0,2.96221271]
[1746400481356,1.2638765,94828.0,94827.0,2.75133401]
[1746400485566,1.2638765,94828.0,94827.0,3.03953903]
[1746400486767,1.2638765,94828.0,94827.0,2.67834035]
[1746400490767,1.2638765,94828.0,94827.0,2.95044035]
[1746400492170,1.2638765,94828.0,94827.0,2.83244035]
[1746400493172,1.2638765,94828.0,94827.0,2.95044035]
[1746400493472,1.2638765,94828.0,94827.0,2.93077513]
[1746400498161,1.2638765,94828.0,94827.0,1.09342513]
[1746400498357,1.2638765,94828.0,94827.0,0.59432513]
[1746400499265,1.2638765,94828.0,94827.0,0.47632513]
[1746400500073,1.2638765,94828.0,94827.0,0.68720383]
[1746400500364,1.2638765,94828.0,94827.0,0.80520383]
[1746400500673,1.2638765,94828.0,94827.0,0.32578533]
[1746400501469,1.2638765,94828.0,94827.0,0.45718533]
[1746400502065,1.2638765,94828.0,94827.0,0.33918533]
[1746400504377,1.2638765,94828.0,94827.0,0.45718533]
[1746400505876,1.2638765,94828.0,94827.0,2.29453533]
[1746400507771,1.2638765,94828.0,94827.0,2.16313533]
[1746400507970,1.2638765,94828.0,94827.0,0.32578533]
[1746400508272,1.2638765,94828.0,94827.0,0.20778533]
[1746400509073,1.2638765,94828.0,94827.0,0.07398533]
[1746400509265,1.3693325,94828.0,94827.0,0.07398533]
[1746400510277,1.4873325,94828.0,94827.0,0.07398533]
[1746400511071,1.3818765,94828.0,94827.0,0.07398533]
[1746400511572,1.3818765,94828.0,94827.0,0.63517922]
[1746400512082,1.2638765,94828.0,94827.0,0.63517922]
[1746400513475,1.2638765,94828.0,94827.0,0.76177922]
[1746400515083,1.2638765,94828.0,94827.0,0.20058533]
[1746400520784,1.2638765,94828.0,94827.0,0.07398533]
[1746400520988,1.3693325,94828.0,94827.0,0.07398533]
[1746400521284,1.4873325,94828.0,94827.0,0.026]
[1746400523073,1.637256,94828.0,94815.0,0.0664]
[1746400523279,0.5717032,94816.0,94815.0,0.0664]
[1746400523484,1.5317032,94816.0,94815.0,0.11446225]
[1746400523684,1.6371712,94816.0,94815.0,0.04806225]
[1746400523983,0.210921,94808.0,94807.0,0.0664]
[1746400524289,1.718721,94808.0,94807.0,0.11407906]
[1746400524489,1.815197,94808.0,94807.0,0.04767906]
[1746400524889,2.190797,94808.0,94807.0,0.04767906]
[1746400525191,2.19997883,94808.0,94807.0,0.04767906]
[1746400526287,2.19997883,94808.0,94801.0,0.32244632]
[1746400526288,0.2109343,94802.0,94801.0,0.32244632]
[1746400526474,1.1909343,94802.0,94801.0,0.37008534]
[1746400527089,1.2964183,94802.0,94801.0,0.37008534]
[1746400527279,1.6753183,94802.0,94801.0,0.37008534]
[1746400527689,1.6773183,94802.0,94801.0,0.37008534]
[1746400528075,1.5748343,94802.0,94801.0,0.37008534]
[1746400529081,1.5748343,94802.0,94801.0,0.04763902]
[1746400529281,0.210941,94799.0,94798.0,0.21476702]
[1746400529487,1.280941,94799.0,94798.0,0.21476702]
[1746400529878,0.2109677,94787.0,94786.0,0.1292]
[1746400530083,1.2109677,94787.0,94786.0,0.53762892]
[1746400530392,1.2109677,94787.0,94786.0,1.95315892]
[1746400530788,1.2109677,94787.0,94786.0,1.59196024]
[1746400531292,1.2139677,94787.0,94786.0,1.59196024]
[1746400531678,1.3427677,94787.0,94786.0,1.59196024]
[1746400532893,1.3447677,94787.0,94786.0,1.59196024]
[1746400533791,1.2159677,94787.0,94786.0,1.59196024]
[1746400534689,1.2159677,94787.0,94786.0,1.54473]
[1746400535791,1.2159677,94787.0,94786.0,0.1292]
[1746400536087,1.3495677,94787.0,94786.0,0.17640233]
[1746400536392,1.4675677,94787.0,94786.0,0.17640233]
[1746400536691,1.6037677,94787.0,94786.0,0.17640233]
[1746400537081,0.2110033,94771.0,94767.0,1.22388]
[1746400537283,1.2210033,94771.0,94770.0,0.04878551]
[1746400537491,1.2210033,94771.0,94770.0,1.46431551]
[1746400538294,1.3530033,94771.0,94770.0,1.46431551]
[1746400538993,1.3560033,94771.0,94770.0,1.59101551]
[1746400539294,1.3590033,94771.0,94770.0,1.59101551]
[1746400539792,1.3560033,94771.0,94770.0,1.59101551]
[1746400539989,1.3590033,94771.0,94770.0,1.59101551]
[1746400542094,1.2270033,94771.0,94770.0,2.37403419]
[1746400542397,1.016,94771.0,94770.0,2.37403419]
[1746400542597,0.3608,94788.0,94773.0,1.83735]
[1746400542797,0.21099,94777.0,94776.0,0.3608]
[1746400543009,1.35099,94777.0,94776.0,0.40800279]
[1746400543190,1.35099,94777.0,94776.0,2.60655147]
[1746400543386,1.35099,94777.0,94776.0,2.87495147]
[1746400543998,1.35299,94777.0,94776.0,2.87495147]
[1746400544592,1.35299,94777.0,94776.0,2.51415147]
[1746400544793,1.35299,94777.0,94776.0,2.15295279]
[1746400545602,1.35599,94777.0,94776.0,2.15295279]
[1746400547408,1.35599,94777.0,94775.0,0.136]
[1746400547409,1.61131201,94777.0,94753.0,0.3608]
[1746400547600,0.2110389,94755.0,94754.0,1.88439037]
[1746400547797,1.2810389,94755.0,94754.0,0.55722]
[1746400548101,1.2810389,94755.0,94754.0,1.97275]
[1746400548497,1.5338389,94755.0,94754.0,2.10755]
[1746400548694,1.4101389,94755.0,94754.0,2.10755]
[1746400548899,1.2810389,94755.0,94754.0,2.15459426]
[1746400549299,1.2840389,94755.0,94754.0,2.15459426]
[1746400550609,1.2870389,94755.0,94754.0,2.15459426]
[1746400552602,1.2840389,94755.0,94754.0,2.15459426]
[1746400552901,1.2870389,94755.0,94754.0,2.15459426]
[1746400556211,0.146,94755.0,94754.0,2.63379294]
[1746400556414,0.6070389,94755.0,94754.0,2.63379294]
[1746400556609,0.6370389,94755.0,94754.0,2.63379294]
[1746400556812,0.426,94755.0,94754.0,2.63379294]
[1746400557005,0.426,94755.0,94754.0,2.85386199]
[1746400557205,0.6370389,94755.0,94754.0,2.64282079]
[1746400557710,0.6370389,94755.0,94754.0,2.63379294]
[1746400559007,0.6370389,94755.0,94754.0,2.90686005]
[1746400559707,0.23757106,94755.0,94754.0,3.11790125]
[1746400560111,0.2110346,94757.0,94756.0,0.2110367]
[1746400560312,0.5710346,94757.0,94756.0,2.09543096]
[1746400560617,0.21102,94765.0,94764.0,0.2110153]
[1746400560807,0.68102,94765.0,94764.0,0.61885956]
[1746400561009,0.68102,94765.0,94764.0,2.60639294]
[1746400561308,1.22102,94765.0,94764.0,2.98939294]
[1746400561822,1.22102,94765.0,94764.0,2.62819426]
[1746400562318,1.22402,94765.0,94764.0,2.51019426]
[1746400562913,1.22602,94765.0,94764.0,2.51019426]
[1746400563319,1.36272,94765.0,94764.0,2.51019426]
[1746400563718,1.36272,94765.0,94764.0,0.73386426]
[1746400563919,1.36272,94765.0,94764.0,0.60576426]
[1746400566819,0.2110256,94761.0,94760.0,0.26826502]
[1746400567122,1.3290256,94761.0,94760.0,0.31619352]
[1746400567625,1.6001256,94761.0,94760.0,0.0479285]
[1746400568025,1.6031256,94761.0,94760.0,0.1864285]
[1746400568324,1.4851256,94761.0,94760.0,0.1864285]
[1746400568920,1.4871256,94761.0,94760.0,0.1864285]
[1746400569537,1.4871256,94761.0,94760.0,0.0479285]
[1746400570218,1.6051256,94761.0,94760.0,0.0479285]
[1746400571024,0.2110412,94754.0,94753.0,0.3608]
[1746400571213,1.2810412,94754.0,94753.0,0.40878985]
[1746400571920,1.5426412,94754.0,94753.0,0.53678985]
[1746400572121,1.5426412,94754.0,94753.0,0.40878985]
[1746400572626,1.5456412,94754.0,94753.0,0.40878985]
[1746400572828,1.5486412,94754.0,94753.0,0.60310985]
[1746400575021,1.2870412,94754.0,94753.0,2.80165853]
[1746400575315,1.076,94754.0,94753.0,2.91965853]
[1746400575520,1.076,94754.0,94753.0,3.13070193]
[1746400576024,1.2870412,94754.0,94753.0,2.91965853]
[1746400576812,1.2870412,94754.0,94753.0,3.04755853]
[1746400577018,0.04,94754.0,94753.0,3.25860193]
[1746400577219,0.06,94754.0,94753.0,3.25860193]
[1746400577431,0.36,94754.0,94753.0,3.25860193]
[1746400578425,0.36,94754.0,94753.0,2.89740325]
[1746400578624,0.36,94754.0,94753.0,3.25860193]
[1746400579337,0.36,94754.0,94753.0,3.52279173]
[1746400580029,0.36,94754.0,94753.0,3.62832773]
[1746400580219,0.5710412,94754.0,94753.0,3.62832773]
[1746400580726,1.1310412,94754.0,94753.0,3.41728433]
[1746400580925,1.1310412,94754.0,94753.0,3.62832773]
[1746400581129,0.92,94754.0,94753.0,3.52279173]
[1746400581325,0.34,94754.0,94753.0,3.52279173]
[1746400581724,0.5910412,94754.0,94753.0,3.52279173]
[1746400582233,0.38,94754.0,94753.0,3.52279173]
[1746400582434,0.1327,94769.0,94758.0,0.0527579]
[1746400582624,0.2637745,94766.0,94765.0,0.6328339]
[1746400582933,1.2737745,94766.0,94765.0,2.10157375]
[1746400583128,1.2737745,94766.0,94765.0,1.10786375]
[1746400583526,1.2210206,94766.0,94765.0,2.52339375]
[1746400583728,1.01,94766.0,94765.0,2.88459243]
[1746400583923,0.67,94766.0,94765.0,2.99011642]
[1746400584129,0.8810144,94766.0,94765.0,3.10811642]
[1746400584944,0.1375,94777.0,94775.0,0.2109922]
[1746400585124,0.61099,94777.0,94776.0,2.24613985]
[1746400585325,0.56099,94777.0,94776.0,2.24613985]
[1746400585725,0.57099,94777.0,94776.0,2.24613985]
[1746400585936,1.03,94777.0,94776.0,2.45713205]
[1746400586329,1.035,94777.0,94776.0,2.45713205]
[1746400586634,1.24599,94777.0,94776.0,2.45713205]
[1746400587036,1.035,94777.0,94776.0,2.45713205]
[1746400588130,1.035,94777.0,94776.0,2.57513205]
[1746400590142,1.035,94777.0,94776.0,2.83932185]
[1746400591232,1.035,94777.0,94776.0,2.72132185]
[1746400591437,0.015,94777.0,94776.0,2.72132185]
[1746400591632,0.2109588,94793.0,94790.0,0.0527402]
[1746400591839,0.3449566,94792.0,94791.0,0.32518865]
[1746400592142,1.3849566,94792.0,94791.0,0.11422985]
[1746400592448,1.5163566,94792.0,94791.0,0.11422985]
[1746400593437,1.5183566,94792.0,94791.0,0.11422985]
[1746400594641,1.5213566,94792.0,94791.0,0.11422985]
[1746400595336,1.5213566,94792.0,94791.0,0.32899097]
[1746400598446,1.5213566,94792.0,94791.0,0.11422985]
[1746400600149,1.6393566,94792.0,94791.0,0.11422985]
[1746400602149,1.5213566,94792.0,94791.0,0.11422985]
[1746400603248,1.6393566,94792.0,94791.0,0.11422985]
[1746400605150,1.5213566,94792.0,94791.0,0.11422985]
[1746400606246,1.3104,94792.0,94791.0,2.16253865]
[1746400606441,1.3899566,94792.0,94791.0,2.16253865]
[1746400606650,1.3899566,94792.0,94791.0,2.31277853]
[1746400607056,1.045,94792.0,94791.0,2.90463733]
[1746400607647,0.0015,94800.0,94799.0,0.210941]
[1746400607848,0.5315,94800.0,94799.0,2.09628085]
[1746400608044,0.0815,94800.0,94799.0,2.83837953]
[1746400608245,0.001,94806.0,94805.0,0.2109276]
[1746400608444,0.431,94806.0,94805.0,2.16250745]
[1746400608645,0.6419254,94806.0,94805.0,2.78660613]
[1746400609046,0.6419254,94806.0,94805.0,2.90460613]
[1746400610046,0.6439254,94806.0,94805.0,2.90460613]
[1746400610347,0.6439254,94806.0,94805.0,2.48278613]
[1746400610555,0.6439254,94806.0,94805.0,2.69367853]
[1746400610757,0.6469254,94806.0,94805.0,2.69367853]
[1746400611154,0.6469254,94806.0,94805.0,2.90460613]
[1746400612745,0.436,94806.0,94805.0,2.90460613]
[1746400612941,0.346,94806.0,94805.0,2.90460613]
[1746400613955,0.5569254,94806.0,94805.0,2.90460613]
[1746400615353,0.5669254,94806.0,94805.0,2.90460613]
[1746400615848,0.356,94806.0,94805.0,2.90460613]
[1746400617156,0.0527259,94816.0,94812.0,0.2636327]
[1746400617357,1.2836291,94816.0,94815.0,0.6327254]
[1746400617559,1.2836291,94816.0,94815.0,0.68071525]
[1746400617758,1.2836291,94816.0,94815.0,0.25889525]
[1746400617957,1.2836291,94816.0,94815.0,0.68071525]
[1746400618458,1.2846291,94816.0,94815.0,0.68071525]
[1746400618854,1.2319032,94816.0,94815.0,0.68071525]
[1746400619059,1.2339032,94816.0,94815.0,0.68071525]
[1746400619653,1.023,94816.0,94815.0,0.68071525]
[1746400620157,1.023,94816.0,94815.0,1.04151525]
[1746400623757,1.023,94816.0,94815.0,1.18171525]
[1746400624060,1.5057032,94816.0,94815.0,0.54898985]
[1746400624257,1.5057032,94816.0,94815.0,0.40878985]
[1746400624462,1.5057032,94816.0,94815.0,0.04798985]
[1746400625167,0.2109076,94814.0,94813.0,0.21456253]
[1746400625462,1.3209076,94814.0,94813.0,0.26229811]
[1746400626158,1.4389076,94814.0,94813.0,0.26229811]
[1746400627866,1.4409076,94814.0,94813.0,0.26229811]
[1746400628064,1.4419076,94814.0,94813.0,0.26229811]
[1746400628762,1.90817961,94814.0,94813.0,0.26229811]
[1746400629158,1.8027076,94814.0,94813.0,0.26229811]
[1746400629661,1.8027076,94814.0,94813.0,0.21456253]
[1746400630855,1.8027076,94814.0,94809.0,0.21456253]
[1746400630856,0.2109165,94810.0,94809.0,0.21456253]
[1746400631056,1.3209165,94810.0,94809.0,0.32843655]
[1746400631258,1.4389165,94810.0,94809.0,0.32843655]
[1746400631962,1.4409165,94810.0,94809.0,0.32843655]
[1746400632164,1.3249165,94810.0,94809.0,0.32843655]
[1746400633060,1.4429165,94810.0,94809.0,0.32843655]
[1746400634161,1.4429165,94810.0,94809.0,0.11387402]
[1746400636260,1.3249165,94810.0,94809.0,0.11387402]
[1746400637161,1.4429165,94810.0,94809.0,0.11387402]
[1746400638258,1.3249165,94810.0,94809.0,0.11387402]
[1746400638863,1.4303925,94810.0,94809.0,0.11387402]
[1746400639059,1.4303925,94810.0,94809.0,0.06612]
[1746400639260,1.8243925,94810.0,94809.0,0.06612]
[1746400639958,1.8243925,94810.0,94804.0,0.26825769]
[1746400639959,0.2109276,94805.0,94804.0,0.26825769]
[1746400640164,1.3689276,94805.0,94804.0,0.31607921]
[1746400640867,1.6308276,94805.0,94804.0,0.31607921]
[1746400641460,1.6338276,94805.0,94804.0,0.31607921]
[1746400641659,1.6338276,94805.0,94804.0,0.26283833]
[1746400641660,1.6358276,94805.0,94804.0,0.26283833]
[1746400645470,1.53038,94805.0,94801.0,0.13428165]
[1746400645666,0.2109521,94794.0,94793.0,0.17788139]
[1746400645867,0.2109721,94785.0,94784.0,0.32231765]
[1746400646060,1.5517721,94785.0,94784.0,0.37014314]
[1746400646263,1.7752761,94785.0,94784.0,0.37014314]
[1746400646663,2.0500761,94785.0,94784.0,0.37014314]
[1746400647675,2.0530761,94785.0,94784.0,0.37014314]
[1746400648375,2.06268883,94785.0,94784.0,0.37014314]
[1746400648670,2.06468883,94785.0,94784.0,0.37014314]
[1746400649376,2.06468883,94785.0,94784.0,0.20892094]
[1746400649672,2.0726516,94785.0,94784.0,0.16109545]
[1746400650065,1.9671476,94785.0,94784.0,0.16109545]
[1746400652271,0.2109744,94784.0,94783.0,0.1399]
[1746400652480,1.2709744,94784.0,94783.0,0.1399]
[1746400652671,1.5391744,94784.0,94783.0,0.1399]
[1746400653075,1.6571744,94784.0,94783.0,0.1399]
[1746400653275,1.6601744,94784.0,94783.0,0.1399]
[1746400654079,1.6621744,94784.0,94783.0,0.1399]
[1746400654282,1.6621744,94784.0,94783.0,0.2795]
[1746400660182,1.3939744,94784.0,94783.0,2.47804868]
[1746400660377,1.3939744,94784.0,94783.0,2.52560013]
[1746400661172,1.2759744,94784.0,94783.0,2.52560013]
[1746400661376,1.2759744,94784.0,94783.0,1.74258145]
[1746400661576,1.5394744,94784.0,94783.0,0.2795]
[1746400661777,1.5394744,94784.0,94783.0,0.1399]
[1746400662178,1.6574744,94784.0,94783.0,0.1399]
[1746400663081,1.5394744,94784.0,94783.0,0.1399]
[1746400663284,1.5394744,94784.0,94783.0,0.271]
[1746400665182,1.6574744,94784.0,94783.0,0.271]
[1746400666084,1.5394744,94784.0,94783.0,0.271]
[1746400666282,1.9002744,94784.0,94783.0,0.271]
[1746400668686,1.9002744,94784.0,94783.0,0.31858423]
[1746400672290,1.9002744,94784.0,94783.0,0.271]
[1746400673689,1.9002744,94784.0,94783.0,0.31904017]
[1746400680088,1.7696744,94784.0,94783.0,2.51758885]
[1746400680294,1.2759744,94784.0,94783.0,2.87838885]
[1746400681094,1.2759744,94784.0,94783.0,2.99638885]
[1746400684187,1.6367744,94784.0,94783.0,0.43704017]
[1746400684488,1.7804744,94784.0,94783.0,0.43704017]
[1746400685193,1.7804744,94784.0,94783.0,0.31904017]
[1746400685699,1.7804744,94784.0,94783.0,0.59955606]
[1746400687295,1.7804744,94784.0,94783.0,0.31904017]
[1746400688394,1.7804744,94784.0,94783.0,2.15639017]
[1746400688890,1.6367744,94784.0,94783.0,2.51758885]
[1746400690397,1.7775744,94784.0,94783.0,2.51758885]
[1746400691297,1.7775744,94784.0,94783.0,2.15639017]
[1746400693398,1.6367744,94784.0,94783.0,2.15639017]
[1746400693803,1.7751744,94784.0,94783.0,2.15639017]
[1746400694290,1.9186744,94784.0,94783.0,2.15639017]
[1746400694690,1.9186744,94784.0,94783.0,0.31904017]
[1746400698600,1.9186744,94784.0,94783.0,0.18794017]
[1746400698794,1.9186744,94784.0,94767.0,0.26891679]
[1746400698795,0.21101,94768.0,94767.0,0.26891679]
[1746400698994,1.21101,94768.0,94767.0,0.31703703]
[1746400699298,1.57181,94768.0,94767.0,0.31703703]
[1746400699799,1.84721,94768.0,94767.0,0.31703703]
[1746400699993,1.85021,94768.0,94767.0,0.31703703]
[1746400700194,1.97021,94768.0,94767.0,0.31703703]
[1746400702902,1.97021,94768.0,94758.0,0.26891679]
[1746400702903,0.21103,94759.0,94758.0,0.26891679]
[1746400703103,1.53183,94759.0,94758.0,0.31681595]
[1746400703295,1.53183,94759.0,94758.0,2.51536463]
[1746400703805,1.17103,94759.0,94758.0,2.51536463]
[1746400704498,1.17103,94759.0,94758.0,2.65136463]
[1746400704899,1.53183,94759.0,94758.0,0.45281595]
[1746400705100,1.92003,94759.0,94758.0,0.31681595]
[1746400705302,1.92998761,94759.0,94758.0,0.31681595]
[1746400705506,0.2110545,94748.0,94743.0,0.1344]
[1746400705699,0.2110545,94748.0,94747.0,0.37176994]
[1746400705700,1.5218545,94748.0,94747.0,0.37176994]